bitfinex/quotes_SOLUSD_20241029
["timestamp","ask_amount","ask_price","bid_price","bid_amount"]
[1730164614781,17.05956445,178.1,178.06,19.6561]
[1730164614993,22.67406445,178.11,178.06,36.71566445]
[1730164615193,17.05956445,178.11,178.06,36.71566445]
[1730164616886,11.44930369,178.12,178.08,17.05956445]
[1730164617066,28.50886814,178.12,178.07,17.05956445]
[1730164617581,17.05956445,178.11,178.06,31.09966445]
[1730164617960,17.05956445,178.11,178.06,36.71566445]
[1730164618166,17.05956445,178.1,178.06,19.6561]
[1730164618380,50.78226814,178.12,178.06,36.71566445]
[1730164619881,22.89466814,178.12,178.07,40.83644845]
[1730164620082,5.83510369,178.12,178.08,17.05956445]
[1730164620581,5.83510369,178.12,178.09,17.05956445]
[1730164620799,21.6632,178.15,178.11,17.05956445]
[1730164621084,21.6632,178.15,178.1,17.05956445]
[1730164621590,27.2765,178.15,178.1,17.05956445]
[1730164621890,17.05956445,178.14,178.09,17.05956445]
[1730164623395,17.05956445,178.14,178.09,22.67446445]
[1730164623568,44.33606445,178.15,178.1,17.05956445]
[1730164624874,21.6632,178.15,178.11,17.05956445]
[1730164625190,5.83333351,178.16,178.12,17.05956445]
[1730164625382,21.5152,178.19,178.15,17.05956445]
[1730164625595,27.1249,178.26,178.16,17.05956445]
[1730164625787,22.90503993,178.22,178.17,17.05956445]
[1730164625996,17.05956445,178.22,178.17,17.05956445]
[1730164626679,5.6113,178.21,178.16,17.05956445]
[1730164627100,22.67086445,178.21,178.16,17.05956445]
[1730164627399,17.05956445,178.2,178.15,17.05956445]
[1730164627894,17.05956445,178.18,178.14,14.0334]
[1730164628373,17.05956445,178.2,178.14,31.09296445]
[1730164628895,22.67136445,178.2,178.15,17.05956445]
[1730164629101,5.6118,178.2,178.16,17.05956445]
[1730164629397,17.05956445,178.19,178.14,31.09296445]
[1730164629997,17.05956445,178.19,178.14,36.70646445]
[1730164630369,17.05956445,178.19,178.14,31.09296445]
[1730164630676,17.05956445,178.17,178.12,17.05956445]
[1730164631297,22.67226445,178.17,178.12,17.05956445]
[1730164631600,22.67226445,178.17,178.11,22.67386445]
[1730164632272,5.6127,178.17,178.13,17.05956445]
[1730164632469,5.6121,178.19,178.16,17.05956445]
[1730164632874,22.67166445,178.19,178.14,17.05956445]
[1730164633683,17.05956445,178.17,178.12,17.05956445]
[1730164633882,17.05956445,178.17,178.11,36.71006445]
[1730164634202,22.67166445,178.19,178.14,17.05956445]
[1730164635276,5.6121,178.19,178.15,17.05956445]
[1730164635904,22.67166445,178.19,178.14,17.05956445]
[1730164636476,5.6121,178.19,178.14,17.05956445]
[1730164636806,17.05956445,178.18,178.13,17.05956445]
[1730164637193,17.05956445,178.18,178.12,22.67336445]
[1730164637388,17.05956445,178.17,178.12,17.05956445]
[1730164637587,17.05956445,178.17,178.11,14.0362]
[1730164637588,5.6125,178.18,178.14,17.05956445]
[1730164637906,22.67206445,178.18,178.12,20.80612447]
[1730164638402,22.67206445,178.18,178.12,17.05956445]
[1730164638571,22.67206445,178.18,178.13,17.05956445]
[1730164638977,17.05956445,178.16,178.11,17.05956445]
[1730164639185,17.05956445,178.14,178.09,3.74878849]
[1730164639389,17.05956445,178.14,178.08,36.71356445]
[1730164639602,17.05956445,178.14,178.09,3.75124667]
[1730164640299,17.05956445,178.11,178.06,3.75124667]
[1730164640501,17.05956445,178.1,178.05,22.67576445]
[1730164640709,22.67476445,178.09,178.05,3.75312325]
[1730164640875,22.67476445,178.09,178.05,9.22222547]
[1730164641397,17.05956445,178.08,178.05,9.22222547]
[1730164641709,17.05956445,178.07,178.04,3.75312325]
[1730164641897,17.05956445,178.08,178.03,3.75312325]
[1730164642093,17.05956445,178.06,178.03,3.75312325]
[1730164642295,17.05956445,178.04,178.02,3.75312325]
[1730164642800,22.67646445,178.04,178.0,3.75312325]
[1730164642977,5.6169,178.04,178.01,3.75312325]
[1730164643189,5.6169,178.04,178.02,3.75312325]
[1730164643384,5.6169,178.04,178.01,3.75312325]
[1730164643584,5.6169,178.04,178.02,3.75312325]
[1730164643790,5.6169,178.04,178.0,3.75312325]
[1730164643992,17.05956445,178.04,178.01,3.75312325]
[1730164644185,22.67496445,178.08,178.02,20.8126877]
[1730164644381,22.67496445,178.08,178.02,3.75312325]
[1730164644382,17.05956445,178.06,178.02,3.75312325]
[1730164644599,17.05956445,178.04,178.01,3.75312325]
[1730164644805,17.05956445,178.02,177.98,3.75312325]
[1730164644985,17.05956445,178.02,177.99,3.75312325]
[1730164645187,17.05956445,178.02,178.0,3.75312325]
[1730164645405,17.05956445,178.02,177.98,3.75312325]
[1730164645705,17.05956445,178.02,177.99,3.75312325]
[1730164646010,17.05956445,178.02,177.98,3.75312325]
[1730164646011,17.05956445,178.01,177.98,3.75312325]
[1730164646188,17.05956445,178.01,177.99,3.75312325]
[1730164646503,22.67706445,178.02,177.96,20.8126877]
[1730164646696,22.67706445,178.02,177.97,3.75312325]
[1730164647006,22.67726445,178.01,177.98,3.75312325]
[1730164647208,22.67726445,178.01,177.97,3.75312325]
[1730164647500,22.67726445,178.01,177.98,3.75312325]
[1730164647715,22.67726445,178.01,177.96,3.75312325]
[1730164647887,22.67726445,178.01,177.97,3.75312325]
[1730164648082,22.67726445,178.01,177.96,17.05956445]
[1730164648288,22.67726445,178.01,177.97,3.75815553]
[1730164648599,28.52063771,178.03,177.98,17.05956445]
[1730164648787,28.52063771,178.03,177.96,3.75815553]
[1730164648979,28.52063771,178.03,177.96,20.81771998]
[1730164648980,17.05956445,178.02,177.96,20.81771998]
[1730164649178,17.05956445,178.02,177.97,17.05956445]
[1730164650405,5.84397326,178.03,177.99,17.05956445]
[1730164650592,5.6167,178.04,177.99,17.05956445]
[1730164650796,22.67626445,178.04,177.98,20.81771998]
[1730164652399,17.05956445,178.02,177.98,9.37675553]
[1730164652589,17.05956445,178.03,177.98,5.6186]
[1730164653884,17.05956445,178.03,177.98,9.36890692]
[1730164654397,17.05956445,178.02,177.98,3.75030692]
[1730164655105,17.05956445,178.02,177.98,3.75015142]
[1730164655296,17.05956445,178.01,177.97,17.79745142]
[1730164655495,17.05956445,178.01,177.97,14.0473]
[1730164656216,17.05956445,178.02,177.97,31.10686445]
[1730164656382,5.83287216,178.05,178.0,17.05956445]
[1730164656383,22.89243661,178.05,178.0,17.05956445]
[1730164656582,22.89243661,178.05,178.01,17.05956445]
[1730164656583,5.83287216,178.05,178.01,17.05956445]
[1730164657592,5.83287216,178.05,178.0,22.67746445]
[1730164658710,5.83287216,178.05,178.01,17.05956445]
[1730164659505,22.89243661,178.05,178.0,17.05956445]
[1730164659715,22.89243661,178.05,178.0,22.67736445]
[1730164660220,5.83287216,178.05,178.0,22.67736445]
[1730164660609,5.83287216,178.05,178.0,5.6178]
[1730164660795,17.05956445,178.01,177.95,19.6682]
[1730164661104,17.05956445,177.98,177.95,14.0487]
[1730164661312,17.05956445,177.98,177.94,6.2122953]
[1730164661692,17.05956445,177.96,177.94,0.5925953]
[1730164662018,17.05956445,177.95,177.94,0.5925953]
[1730164662896,17.05956445,177.96,177.94,0.5925953]
[1730164663407,22.8914558,177.99,177.94,0.5925953]
[1730164663909,5.6186,177.98,177.94,0.5925953]
[1730164664094,22.67816445,177.98,177.94,0.5925953]
[1730164665421,17.05956445,177.97,177.94,0.5925953]
[1730164665593,17.05956445,177.96,177.94,0.5925953]
[1730164666796,22.67876445,177.96,177.94,0.5925953]
[1730164667101,17.05956445,177.97,177.94,0.5925953]
[1730164667305,22.67846445,177.97,177.94,0.5925953]
[1730164668212,22.8914558,177.99,177.94,20.2618953]
[1730164668411,22.8914558,177.99,177.94,14.6421953]
[1730164668412,17.05956445,177.98,177.94,14.6421953]
[1730164668715,22.67816445,177.98,177.94,14.6421953]
[1730164669096,17.05956445,177.97,177.94,14.6421953]
[1730164669293,17.05956445,177.96,177.94,0.5925953]
[1730164670215,17.05956445,177.95,177.94,0.5925953]
[1730164671702,22.67906445,177.95,177.94,0.5925953]
[1730164672586,17.05956445,177.95,177.94,0.5925953]
[1730164672791,28.51479174,177.96,177.94,0.5925953]
[1730164673026,11.45522729,177.96,177.94,0.5925953]
[1730164673399,5.83602729,177.96,177.94,0.5925953]
[1730164673609,17.05956445,177.99,177.94,6.2123953]
[1730164674321,17.05956445,178.0,177.94,37.32155975]
[1730164674690,16.99215265,178.02,177.97,17.05956445]
[1730164674895,16.99215265,178.02,177.98,17.05956445]
[1730164675203,29.82011287,178.04,177.99,17.05956445]
[1730164675204,35.43691287,178.04,177.99,17.05956445]
[1730164675508,17.05956445,178.02,177.96,17.05956445]
[1730164676092,22.67676445,178.03,177.98,17.05956445]
[1730164676289,12.76054842,178.04,177.94,20.2619953]
[1730164676496,29.82011287,178.04,177.98,17.05956445]
[1730164676799,17.05956445,178.03,177.98,17.05956445]
[1730164677322,35.43691287,178.04,177.98,17.05956445]
[1730164677803,12.76054842,178.04,178.0,17.05956445]
[1730164678013,12.76054842,178.04,177.99,17.05956445]
[1730164679201,12.76054842,178.04,177.99,22.67766445]
[1730164679397,29.82011287,178.04,177.99,5.6181]
[1730164680696,17.05956445,178.03,177.98,14.0465]
[1730164680896,17.05956445,178.03,177.98,36.72466445]
[1730164682419,22.67656445,178.03,177.98,36.72466445]
[1730164682631,17.05956445,178.0,177.94,0.5925953]
[1730164682796,17.05956445,177.95,177.94,0.5925953]
[1730164683603,17.05956445,177.96,177.94,0.5925953]
[1730164684095,17.05956445,177.97,177.94,0.5925953]
[1730164685412,87.05956445,178.02,177.94,0.5925953]
[1730164685594,17.05956445,177.96,177.94,0.5925953]
[1730164685801,17.05956445,177.95,177.94,0.5925953]
[1730164686823,22.67906445,177.95,177.94,0.5925953]
[1730164690610,42.67906445,177.95,177.94,0.5925953]
[1730164691226,59.32646445,177.95,177.94,0.5925953]
[1730164692016,65.97656445,177.95,177.94,0.5925953]
[1730164692626,45.97656445,177.95,177.94,0.5925953]
[1730164692932,65.97656445,177.95,177.94,0.5925953]
[1730164693434,71.8123961,177.95,177.94,0.5925953]
[1730164695311,95.6892801,177.95,177.94,0.5925953]
[1730164695524,112.74884455,177.95,177.94,0.5925953]
[1730164695730,95.6892801,177.95,177.94,0.5925953]
[1730164697028,111.2241124,177.95,177.94,0.5925953]
[1730164697237,111.3241124,177.95,177.94,0.5925953]
[1730164697425,128.38367685,177.95,177.94,0.5925953]
[1730164700536,128.38367685,177.95,177.83,3.76593612]
[1730164700537,70.0,177.91,177.83,3.76593612]
[1730164700740,17.05956445,177.86,177.82,23.44803612]
[1730164701119,17.05956445,177.87,177.82,40.50760057]
[1730164701335,17.05956445,177.87,177.83,3.76593612]
[1730164701538,17.05956445,177.87,177.83,3.77117562]
[1730164702541,22.68166445,177.87,177.83,3.77117562]
[1730164703138,5.6221,177.87,177.83,20.83074007]
[1730164703539,22.68166445,177.87,177.83,3.77117562]
[1730164705267,22.68166445,177.87,177.82,36.74176445]
[1730164705633,22.68166445,177.87,177.82,19.6822]
[1730164705833,17.05956445,177.86,177.82,23.45126412]
[1730164706020,17.05956445,177.86,177.82,17.82766412]
[1730164706727,17.05956445,177.84,177.82,3.76906412]
[1730164706923,17.05956445,177.84,177.8,5.6242]
[1730164706924,22.68256445,177.84,177.79,26.45327355]
[1730164707418,22.68256445,177.84,177.79,20.82877355]
[1730164707742,17.05956445,177.83,177.79,9.3937091]
[1730164707939,22.68256445,177.84,177.79,26.45327355]
[1730164709039,17.05956445,177.83,177.79,5.6245]
[1730164709222,17.05956445,177.83,177.79,9.39368539]
[1730164709720,17.05956445,177.83,177.79,5.6245]
[1730164709935,5.6223,177.86,177.78,14.0616]
[1730164709936,17.05956445,177.81,177.78,14.0616]
[1730164710627,17.05956445,177.82,177.78,14.0616]
[1730164711550,20.0,177.78,177.77,0.5925953]
[1730164711724,37.05956445,177.78,177.77,0.5925953]
[1730164713156,20.0,177.78,177.77,0.5925953]
[1730164715237,5.6246,177.79,177.77,0.5925953]
[1730164715434,70.0,177.83,177.77,0.5925953]
[1730164715435,25.6236,177.82,177.77,0.5925953]
[1730164715743,5.83268167,177.82,177.78,17.05956445]
[1730164715938,22.89224612,177.82,177.77,23.27725975]
[1730164716527,5.83268167,177.82,177.77,23.27725975]
[1730164716836,22.89224612,177.82,177.77,23.27725975]
[1730164717944,22.89224612,177.82,177.77,17.65215975]
[1730164717945,28.51594612,177.82,177.77,17.65215975]
[1730164718746,5.83268167,177.82,177.77,23.27715975]
[1730164718950,5.83268167,177.82,177.78,17.05956445]
[1730164719148,20.0,177.84,177.79,17.05956445]
[1730164719325,37.05956445,177.84,177.79,17.05956445]
[1730164719527,17.05956445,177.8,177.77,0.5925953]
[1730164719756,17.05956445,177.78,177.77,0.5925953]
[1730164720336,17.05956445,177.8,177.77,0.5925953]
[1730164721340,17.05956445,177.78,177.77,0.5925953]
[1730164722445,22.68446445,177.78,177.77,0.5925953]
[1730164725042,42.68446445,177.78,177.77,0.5925953]
[1730164726959,112.78446445,177.78,177.77,0.5925953]
[1730164727337,112.68446445,177.78,177.77,0.5925953]
[1730164728545,106.58043002,177.78,177.77,0.5925953]
[1730164729840,112.41526427,177.78,177.77,0.5925953]
[1730164730355,42.41526427,177.78,177.77,0.5925953]
[1730164731665,5.83483425,177.78,177.77,0.5925953]
[1730164731839,5.6239,177.81,177.77,0.5925953]
[1730164732033,30.05672048,177.82,177.77,11.54812532]
[1730164732268,19.31271541,177.82,177.77,17.17322532]
[1730164732456,19.31271541,177.82,177.77,31.23632532]
[1730164733136,19.31271541,177.82,177.78,10.95553002]
[1730164733536,19.31271541,177.82,177.78,16.58033002]
[1730164733735,13.47749046,177.82,177.78,14.0623]
[1730164733961,13.47749046,177.82,177.78,30.64273002]
[1730164734464,10.95553002,177.79,177.77,0.5925953]
[1730164734961,10.95553002,177.8,177.77,0.5925953]
[1730164735657,16.57993002,177.8,177.77,0.5925953]
[1730164736655,19.10139046,177.82,177.77,0.5925953]
[1730164736851,10.95553002,177.81,177.77,0.5925953]
[1730164737163,10.95553002,177.8,177.77,0.5925953]
[1730164739262,13.47749046,177.82,177.77,11.54812532]
[1730164739464,13.47749046,177.82,177.77,17.17322532]
[1730164739763,24.43302048,177.82,177.77,17.17322532]
[1730164740165,10.95553002,177.78,177.77,0.5925953]
[1730164740665,110.45731402,177.78,177.77,0.5925953]
[1730164741251,86.58043002,177.78,177.77,0.5925953]
[1730164742671,22.742261,177.78,177.77,0.5925953]
[1730164743467,5.6249,177.78,177.77,0.5925953]
[1730164743650,22.741961,177.79,177.77,0.5925953]
[1730164743855,17.117361,177.78,177.77,0.5925953]
[1730164744154,22.741961,177.79,177.77,0.5925953]
[1730164744372,17.117361,177.79,177.77,0.5925953]
[1730164745353,22.742061,177.79,177.77,0.5925953]
[1730164745551,22.742161,177.79,177.77,0.5925953]
[1730164747354,92.742161,177.79,177.77,0.5925953]
[1730164747555,17.117361,177.78,177.77,0.5925953]
[1730164748772,22.742261,177.78,177.77,0.5925953]
[1730164750293,42.742261,177.78,177.77,0.5925953]
[1730164750462,66.719145,177.78,177.77,0.5925953]
[1730164751646,66.519145,177.78,177.77,0.5925953]
[1730164751849,25.6249,177.78,177.77,0.5925953]
[1730164752247,25.6246,177.79,177.77,0.5925953]
[1730164753180,17.117361,177.78,177.77,0.5925953]
[1730164753674,5.84349566,177.8,177.77,0.5925953]
[1730164754350,5.6237,177.82,177.78,17.117361]
[1730164754577,17.117361,177.84,177.78,17.117361]
[1730164754761,22.740361,177.84,177.79,17.117361]
[1730164754953,24.96732916,177.85,177.8,17.117361]
[1730164755350,17.117361,177.84,177.79,17.117361]
[1730164755669,17.117361,177.84,177.78,17.117361]
[1730164755983,42.08469016,177.85,177.79,17.117361]
[1730164756587,19.34462916,177.85,177.8,17.117361]
[1730164757091,42.08469016,177.85,177.8,17.117361]
[1730164757295,19.34462916,177.85,177.81,17.117361]
[1730164757458,13.49631136,177.85,177.81,17.117361]
[1730164757876,13.49631136,177.85,177.81,22.741061]
[1730164758186,13.49631136,177.85,177.82,17.117361]
[1730164758598,13.49631136,177.85,177.81,19.6836]
[1730164758599,13.49631136,177.85,177.84,17.117361]
[1730164758965,22.738161,177.91,177.84,17.117361]
[1730164759165,22.738161,177.91,177.85,17.117361]
[1730164759361,17.117361,177.9,177.85,17.117361]
[1730164759575,17.117361,177.9,177.84,17.117361]
[1730164759865,17.117361,177.9,177.81,36.2484]
[1730164759866,17.117361,177.89,177.83,17.117361]
[1730164760990,17.117361,177.89,177.83,22.740461]
[1730164761375,17.117361,177.89,177.83,17.117361]
[1730164762203,17.117361,177.91,177.86,17.117361]
[1730164762403,22.99247374,177.93,177.87,17.117361]
[1730164762698,17.117361,177.92,177.87,17.117361]
[1730164763086,17.117361,177.92,177.87,22.739361]
[1730164763299,17.117361,177.95,177.9,17.117361]
[1730164764201,17.117361,177.93,177.88,17.117361]
[1730164765078,22.737461,177.94,177.89,17.117361]
[1730164765300,22.737061,177.95,177.9,17.117361]
[1730164765586,22.736961,177.95,177.89,17.117361]
[1730164766581,5.87263702,177.98,177.91,17.117361]
[1730164766780,42.736261,177.97,177.91,17.117361]
[1730164766998,17.117361,177.96,177.9,17.117361]
[1730164767697,22.736661,177.96,177.9,22.738361]
[1730164769209,17.117361,177.94,177.89,17.117361]
[1730164769406,17.117361,177.94,177.88,17.117361]
[1730164769907,17.117361,177.91,177.86,17.117361]
[1730164770100,17.117361,177.92,177.86,17.117361]
[1730164771081,17.117361,177.91,177.86,17.117361]
[1730164771687,22.738361,177.91,177.86,17.117361]
[1730164772100,17.117361,177.9,177.85,14.0561]
[1730164772300,17.117361,177.9,177.85,31.173461]
[1730164772607,5.621,177.91,177.86,17.117361]
[1730164773110,5.621,177.91,177.87,17.117361]
[1730164773400,17.117361,177.92,177.87,17.117361]
[1730164773603,5.6205,177.92,177.87,17.117361]
[1730164774498,5.6205,177.92,177.87,22.739361]
[1730164774906,22.737861,177.92,177.87,22.739361]
[1730164775105,17.117361,177.92,177.87,22.739361]
[1730164776094,5.6202,177.93,177.88,17.117361]
[1730164776607,22.737561,177.93,177.88,17.117361]
[1730164777895,22.737561,177.93,177.87,17.117361]
[1730164778609,17.117361,177.92,177.86,17.117361]
[1730164778903,5.6202,177.93,177.88,17.117361]
[1730164779714,5.6198,177.94,177.89,17.117361]
[1730164780009,5.6198,177.94,177.9,17.117361]
[1730164780591,5.6198,177.94,177.89,17.117361]
[1730164781213,22.737161,177.94,177.88,17.117361]
[1730164781389,17.117361,177.92,177.87,14.0552]
[1730164781593,17.117361,177.91,177.87,14.0552]
[1730164781806,17.117361,177.9,177.84,17.117361]
[1730164782316,17.117361,177.9,177.83,5.6233]
[1730164782317,17.117361,177.91,177.85,17.117361]
[1730164783221,5.6211,177.9,177.85,17.117361]
[1730164783917,22.738461,177.9,177.84,17.117361]
[1730164784212,22.738461,177.9,177.83,19.6816]
[1730164784213,17.117361,177.89,177.83,36.798961]
[1730164784419,22.738461,177.9,177.84,17.117361]
[1730164785300,17.117361,177.88,177.83,14.0583]
[1730164785502,17.117361,177.87,177.81,22.741261]
[1730164785698,5.6211,177.9,177.82,17.117361]
[1730164785699,17.117361,177.88,177.82,17.117361]
[1730164787314,5.6218,177.88,177.84,17.117361]
[1730164788099,22.739161,177.88,177.83,17.117361]
[1730164788329,5.6218,177.88,177.83,17.117361]
[1730164789721,5.6218,177.88,177.84,17.117361]
[1730164789923,22.739161,177.88,177.82,17.117361]
[1730164790220,28.60674791,177.88,177.82,17.117361]
[1730164791921,11.48938691,177.88,177.83,17.117361]
[1730164792094,5.86758691,177.88,177.86,17.117361]
[1730164792297,5.6209,177.91,177.87,17.117361]
[1730164792620,5.6209,177.91,177.87,10.93503306]
[1730164793003,27.2368,177.92,177.88,10.93503306]
[1730164793199,11.48652401,177.93,177.89,10.93503306]
[1730164793402,11.7601,177.97,177.91,10.93503306]
[1730164793710,22.69513306,177.97,177.92,10.93503306]
[1730164794117,22.69513306,177.97,177.91,16.55573306]
[1730164794300,10.93503306,177.96,177.91,16.55573306]
[1730164794702,10.93503306,177.96,177.91,10.93503306]
[1730164795416,10.93503306,177.93,177.86,14.0554]
[1730164795606,10.93503306,177.93,177.88,10.93503306]
[1730164796317,10.93503306,177.93,177.88,16.55673306]
[1730164796618,22.70508901,177.94,177.88,22.70668901]
[1730164797598,17.08498901,177.93,177.88,17.08498901]
[1730164798425,22.70508901,177.94,177.88,17.08498901]
[1730164798909,22.70508901,177.94,177.88,22.70668901]
[1730164799327,22.70508901,177.94,177.89,17.08498901]
[1730164800336,17.08498901,177.93,177.88,17.08498901]
[1730164801031,17.08498901,177.91,177.86,14.0554]
[1730164801408,17.08498901,177.9,177.85,17.08498901]
[1730164801615,17.08498901,177.91,177.85,17.08498901]
[1730164802321,5.6211,177.9,177.85,17.08498901]
[1730164802908,5.6211,177.9,177.86,17.08498901]
[1730164803912,11.48963984,177.9,177.86,17.08498901]
[1730164804513,11.48963984,177.9,177.87,17.08498901]
[1730164805347,11.48963984,177.9,177.83,3.77417526]
[1730164805348,17.08498901,177.89,177.83,3.77417526]
[1730164805534,17.08498901,177.89,177.83,17.08498901]
[1730164806038,17.08498901,177.86,177.81,17.08498901]
[1730164806721,17.08498901,177.88,177.82,17.08498901]
[1730164807110,5.622,177.87,177.82,17.08498901]
[1730164807436,22.70698901,177.87,177.81,17.08498901]
[1730164808131,17.08498901,177.86,177.81,17.08498901]
[1730164808744,17.08498901,177.86,177.8,26.4875574]
[1730164809436,5.6226,177.86,177.81,17.08498901]
[1730164809622,5.6226,177.86,177.82,17.08498901]
[1730164810633,5.6226,177.86,177.81,17.08498901]
[1730164811218,5.6226,177.86,177.81,3.78132818]
[1730164811431,5.6226,177.86,177.8,22.70908901]
[1730164811432,17.08498901,177.86,177.8,26.49041719]
[1730164811815,17.08498901,177.84,177.8,3.78132818]
[1730164812140,17.08498901,177.84,177.81,3.78132818]
[1730164812340,17.08498901,177.83,177.8,3.78132818]
[1730164812635,17.08498901,177.83,177.78,3.78132818]
[1730164812849,17.08498901,177.81,177.79,3.78132818]
[1730164813036,17.08498901,177.81,177.78,3.78132818]
[1730164813217,17.08498901,177.81,177.79,3.78132818]
[1730164813416,22.70908901,177.81,177.77,0.5925953]
[1730164813608,5.6241,177.81,177.78,3.78808644]
[1730164813930,5.6241,177.81,177.77,17.67758431]
[1730164813931,5.6241,177.81,177.79,3.78808644]
[1730164814128,5.6241,177.81,177.78,3.78721704]
[1730164814330,5.6241,177.81,177.79,3.78872715]
[1730164814537,5.6241,177.81,177.77,17.67758431]
[1730164814731,22.70828901,177.83,177.78,3.78874115]
[1730164815038,17.08498901,177.82,177.79,3.78874115]
[1730164815243,17.08498901,177.81,177.77,0.5925953]
[1730164815541,17.08498901,177.81,177.78,3.78864085]
[1730164815742,17.08498901,177.81,177.77,0.5925953]
[1730164815917,17.08498901,177.81,177.78,3.78948558]
[1730164816119,22.70918901,177.81,177.77,0.5925953]
[1730164816435,22.70918901,177.81,177.78,3.78932277]
[1730164816623,22.70918901,177.81,177.77,0.5925953]
[1730164816942,5.6242,177.81,177.78,3.78900446]
[1730164817143,5.6242,177.81,177.79,3.78892693]
[1730164817321,5.6242,177.81,177.77,17.67758431]
[1730164817519,42.70828901,177.83,177.78,3.78878496]
[1730164817825,25.6233,177.83,177.79,3.78878496]
[1730164818017,27.10673007,177.84,177.79,3.78878496]
[1730164818018,32.72973007,177.84,177.8,3.28878496]
[1730164818213,32.72973007,177.84,177.79,17.08498901]
[1730164818434,49.81471908,177.84,177.79,17.08498901]
[1730164819038,5.86943007,177.84,177.8,22.70918901]
[1730164819338,20.0,177.85,177.8,36.76988901]
[1730164819935,17.08498901,177.85,177.8,14.0607]
[1730164820323,17.08498901,177.84,177.8,14.0607]
[1730164821733,22.70818901,177.84,177.8,14.0607]
[1730164823852,17.08498901,177.85,177.79,17.08498901]
[1730164824343,17.08498901,177.82,177.77,0.5925953]
[1730164824539,90.0,177.85,177.77,0.5925953]
[1730164824540,10.95000996,177.81,177.77,0.5925953]
[1730164825247,10.95000996,177.83,177.77,11.54260526]
[1730164825418,70.0,177.85,177.77,11.54260526]
[1730164825419,10.95000996,177.84,177.78,10.95000996]
[1730164825744,30.95000996,177.85,177.79,10.95000996]
[1730164825931,5.623,177.84,177.79,10.95000996]
[1730164826243,5.623,177.84,177.8,10.95000996]
[1730164826444,5.623,177.84,177.79,17.10208767]
[1730164828226,5.6227,177.85,177.8,20.88111558]
[1730164828439,5.6227,177.85,177.81,17.10208767]
[1730164828639,5.6227,177.85,177.8,20.88084327]
[1730164828838,5.6224,177.86,177.82,17.10208767]
[1730164829057,22.96891074,177.87,177.83,17.10208767]
[1730164829058,11.48892307,177.87,177.83,17.10208767]
[1730164829435,11.48892307,177.87,177.82,20.88060502]
[1730164829627,11.48892307,177.87,177.82,17.10208767]
[1730164831421,11.48892307,177.87,177.82,20.88110368]
[1730164831851,11.48892307,177.87,177.82,17.10208767]
[1730164832030,5.86682307,177.87,177.86,17.10208767]
[1730164832242,17.10208767,177.91,177.86,17.10208767]
[1730164832545,50.43880299,177.92,177.86,17.10208767]
[1730164832874,5.86391532,177.92,177.88,17.10208767]
[1730164833350,17.10208767,177.9,177.85,3.77774952]
[1730164833652,17.10208767,177.9,177.84,17.10208767]
[1730164833827,22.72348767,177.9,177.85,3.77892605]
[1730164834025,17.10208767,177.89,177.84,17.10208767]
[1730164834440,22.72348767,177.9,177.84,20.88201075]
[1730164834745,22.72348767,177.9,177.85,17.10208767]
[1730164835334,5.6214,177.9,177.86,17.10208767]
[1730164835853,5.6214,177.9,177.84,5.623]
[1730164835854,22.72348767,177.9,177.85,20.88132733]
[1730164836028,17.10208767,177.89,177.85,3.77923966]
[1730164836346,22.72348767,177.9,177.85,20.88149236]
[1730164836554,22.72348767,177.9,177.85,17.10208767]
[1730164836776,22.72348767,177.9,177.85,20.88149236]
[1730164836981,22.72348767,177.9,177.85,17.10208767]
[1730164837147,17.10208767,177.89,177.83,17.10208767]
[1730164837353,17.10208767,177.89,177.84,3.77956274]
[1730164837555,17.10208767,177.89,177.85,3.77956274]
[1730164837863,17.10208767,177.89,177.84,17.10208767]
[1730164838057,17.10208767,177.89,177.85,3.78006902]
[1730164838258,17.10208767,177.89,177.82,19.682]
[1730164838259,5.6217,177.88,177.84,17.10208767]
[1730164838461,5.6217,177.88,177.85,3.78055501]
[1730164838647,5.6217,177.88,177.84,17.10208767]
[1730164838869,5.6217,177.88,177.85,3.7805569]
[1730164839173,5.6217,177.88,177.84,17.10208767]
[1730164839374,5.6217,177.88,177.85,3.78165398]
[1730164839675,5.6217,177.88,177.84,17.10208767]
[1730164839855,5.6217,177.88,177.85,3.78184623]
[1730164840556,5.6217,177.88,177.83,17.10208767]
[1730164842375,5.6217,177.88,177.85,17.10208767]
[1730164842577,5.6217,177.88,177.84,20.88456686]
[1730164843574,5.6217,177.88,177.84,17.10208767]
[1730164843774,11.48285974,177.89,177.85,3.78255931]
[1730164843977,5.86145974,177.89,177.87,17.10208767]
[1730164844184,17.10208767,177.92,177.87,17.10208767]
[1730164844383,22.962872,177.92,177.87,17.10208767]
[1730164844880,17.10208767,177.91,177.85,17.10208767]
[1730164845052,17.10208767,177.9,177.86,3.78293454]
[1730164845260,6.96980394,177.9,177.85,26.50773737]